fUST/lending_fUST_20240819
["ID","MTS","AMOUNT","RATE_DAILY","PERIOD"]
[335231535,1723999855060,-555.559142,0.00016712,2]
[335231536,1723999855070,-555.559142,0.00016712,2]
[335231537,1723999855081,-578.45394227,0.00016712,2]
[335231538,1723999855091,-829.06,0.00016712,2]
[335231539,1723999855100,-312.606967,0.00016712,2]
[335231540,1723999855112,-312.606967,0.00016712,2]
[335231541,1723999855124,-500.0,0.00016712,2]
[335231542,1723999855134,-555.559142,0.00016712,2]
[335231543,1723999855144,-678.84350883,0.00016712,2]
[335231546,1723999898275,166.4,5.479e-05,2]
[335231556,1724000196221,166.4,5.479e-05,2]
[335231578,1724000495985,166.4,5.479e-05,2]
[335231618,1724000795910,166.4,5.479e-05,2]
[335231694,1724001031484,445.59,0.000168,10]
[335231732,1724001037844,-159.069763,0.00014247,2]
[335231734,1724001037854,-24900.0,0.00014738,2]
[335231736,1724001037863,-446.161868,0.00014795,2]
[335231738,1724001037872,-1414.0,0.00015567,2]
[335231740,1724001037881,-8341.909,0.00015567,2]
[335231741,1724001037890,-5000.0,0.00016,2]
[335231743,1724001037899,-153.0,0.00016,2]
[335231745,1724001037909,-153.0,0.00016,2]
[335231747,1724001037918,-153.0,0.00016,2]
[335231749,1724001037928,-153.0,0.00016,2]
[335231751,1724001037938,-153.0,0.00016,2]
[335231753,1724001037948,-153.0,0.00016,2]
[335231755,1724001037959,-153.0,0.00016041,2]
[335231757,1724001037968,-153.0,0.000161,2]
[335231759,1724001037977,-306.0,0.000161,2]
[335231761,1724001037987,-4071.14644571,0.00016238,2]
[335231763,1724001037997,-2000.0,0.00016238,2]
[335231765,1724001038006,-4071.1464457,0.00016263,2]
[335231767,1724001038015,-4071.1464457,0.00016288,2]
[335231769,1724001038025,-153.0,0.000163,2]
[335231771,1724001038034,-4071.1464457,0.00016313,2]
[335231773,1724001038043,-500.0,0.00016327,2]
[335231775,1724001038053,-199.80346656,0.00016327,2]
[335231777,1724001038062,-500.0,0.00016327,2]
[335231779,1724001038071,-500.0,0.00016327,2]
[335231781,1724001038081,-500.0,0.00016327,2]
[335231783,1724001038090,-186.99519942,0.00016327,2]
[335231785,1724001038100,-84686.7528046,0.00016328,2]
[335231787,1724001038110,-2850.36335892,0.00016338,2]
[335231790,1724001038119,-4071.1464457,0.00016338,2]
[335231792,1724001038129,-88888.0,0.00016338,2]
[335231794,1724001038139,-153.0,0.000164,2]
[335231796,1724001038148,-153.0,0.000164,2]
[335231798,1724001038158,-153.0,0.000164,2]
[335231800,1724001038167,-153.0,0.000164,2]
[335231802,1724001038176,-153.0,0.000164,2]
[335231804,1724001038186,-316.4827715,0.000164,2]
[335231805,1724001038197,-153.0,0.000164,2]
[335231808,1724001038207,-153.0,0.000164,2]
[335231810,1724001038219,-211716.882011,0.00016428,2]
[335231812,1724001038229,-500.0,0.00016438,2]
[335231814,1724001038239,-500.0,0.00016438,2]
[335231816,1724001038248,-500.0,0.00016438,2]
[335231818,1724001038258,-500.0,0.00016438,2]
[335231820,1724001038268,-554.6380685,0.00016438,2]
[335231822,1724001038277,-505.01363414,0.00016438,2]
[335231824,1724001038286,-500.0,0.00016438,2]
[335231826,1724001038295,-500.0,0.00016438,2]
[335231827,1724001038304,-500.0,0.00016438,2]
[335231829,1724001038313,-245.65795402,0.00016438,2]
[335231831,1724001038324,-500.0,0.00016438,2]
[335231833,1724001038333,-502.82990042,0.00016438,2]
[335231835,1724001038343,-500.0,0.00016438,2]
[335231837,1724001038354,-398.80764802,0.00016438,2]
[335231838,1724001038365,-500.0,0.00016438,2]
[335231839,1724001038375,-500.0,0.00016438,2]
[335231840,1724001038385,-500.0,0.00016438,2]
[335231841,1724001038395,-500.0,0.00016438,2]
[335231842,1724001038407,-296.38787265,0.00016438,2]
[335231843,1724001038417,-185.56289874,0.00016438,2]
[335231844,1724001038427,-500.0,0.00016438,2]
[335231845,1724001038437,-500.0,0.00016438,2]
[335231846,1724001038448,-500.0,0.00016438,2]
[335231847,1724001038457,-500.0,0.00016438,2]
[335231848,1724001038466,-500.0,0.00016438,2]
[335231849,1724001038475,-512.97424818,0.00016438,2]
[335231850,1724001038484,-503.19221035,0.00016438,2]
[335231851,1724001038493,-508.84744568,0.00016438,2]
[335231852,1724001038503,-500.0,0.00016438,2]
[335231853,1724001038512,-500.0,0.00016438,2]
[335231854,1724001038521,-500.0,0.00016438,2]
[335231855,1724001038532,-500.0,0.00016438,2]
[335231856,1724001038541,-505.68544623,0.00016438,2]
[335231857,1724001038550,-643.29991534,0.00016438,2]
[335231858,1724001038561,-500.0,0.00016438,2]
[335231859,1724001038573,-500.0,0.00016438,2]
[335231860,1724001038583,-506.33476054,0.00016438,2]
[335231861,1724001038592,-509.9356731,0.00016438,2]
[335231862,1724001038602,-500.0,0.00016438,2]
[335231863,1724001038611,-500.0,0.00016438,2]
[335231864,1724001038620,-549.04321915,0.00016438,2]
[335231865,1724001038631,-505.09928173,0.00016438,2]
[335231866,1724001038641,-509.92772392,0.00016438,2]
[335231867,1724001038651,-500.0,0.00016438,2]
[335231868,1724001038660,-500.0,0.00016438,2]
[335231869,1724001038669,-500.0,0.00016438,2]
[335231870,1724001038679,-500.0,0.00016438,2]
[335231871,1724001038689,-500.0,0.00016438,2]
[335231872,1724001038700,-500.0,0.00016438,2]
[335231873,1724001038710,-505.68019105,0.00016438,2]
[335231874,1724001038719,-500.0,0.00016438,2]
[335231875,1724001038728,-500.0,0.00016438,2]
[335231876,1724001038738,-553.69321237,0.00016438,2]
[335231877,1724001038749,-500.0,0.00016438,2]
[335231878,1724001038760,-276.85208661,0.00016438,2]
[335231879,1724001038769,-500.0,0.00016438,2]
[335231880,1724001038779,-500.0,0.00016438,2]
[335231881,1724001038789,-505.24353292,0.00016438,2]
[335231882,1724001038800,-500.0,0.00016438,2]
[335231883,1724001038811,-500.0,0.00016438,2]
[335231884,1724001038822,-500.0,0.00016438,2]
[335231885,1724001038831,-289.56560944,0.00016438,2]
[335231886,1724001038841,-500.0,0.00016438,2]
[335231887,1724001038850,-500.0,0.00016438,2]
[335231888,1724001038860,-500.0,0.00016438,2]
[335231889,1724001038869,-505.51210129,0.00016438,2]
[335231890,1724001038878,-500.0,0.00016438,2]
[335231891,1724001038888,-507.81605481,0.00016438,2]
[335231892,1724001038900,-505.55103988,0.00016438,2]
[335231893,1724001038910,-509.76833442,0.00016438,2]
[335231894,1724001038921,-500.0,0.00016438,2]
[335231895,1724001038932,-500.0,0.00016438,2]
[335231896,1724001038946,-500.0,0.00016438,2]
[335231897,1724001038957,-513.21989605,0.00016438,2]
[335231898,1724001038967,-500.0,0.00016438,2]
[335231899,1724001038977,-500.0,0.00016438,2]
[335231900,1724001038986,-504.05644384,0.00016438,2]
[335231901,1724001038995,-500.0,0.00016438,2]
[335231902,1724001039005,-502.01994795,0.00016438,2]
[335231903,1724001039014,-500.0,0.00016438,2]
[335231904,1724001039142,-500.0,0.00016438,2]
[335231905,1724001039153,-500.0,0.00016438,2]
[335231906,1724001039162,-508.62149033,0.00016438,2]
[335231907,1724001039171,-507.75576917,0.00016438,2]
[335231908,1724001039181,-500.0,0.00016438,2]
[335231909,1724001039190,-500.0,0.00016438,2]
[335231910,1724001039201,-500.0,0.00016438,2]
[335231911,1724001039210,-500.0,0.00016438,2]
[335231912,1724001039219,-500.0,0.00016438,2]
[335231913,1724001039229,-500.0,0.00016438,2]
[335231914,1724001039238,-500.0,0.00016438,2]
[335231915,1724001039247,-539.27040279,0.00016438,2]
[335231916,1724001039256,-505.48558456,0.00016438,2]
[335231917,1724001039265,-500.0,0.00016438,2]
[335231918,1724001039274,-500.0,0.00016438,2]
[335231919,1724001039283,-500.0,0.00016438,2]
[335231920,1724001039292,-500.81633259,0.00016438,2]
[335231921,1724001039301,-504.66007728,0.00016438,2]
[335231922,1724001039310,-500.0,0.00016438,2]
[335231923,1724001039320,-500.0,0.00016438,2]
[335231924,1724001039330,-514.57750072,0.00016438,2]
[335231925,1724001039339,-500.0,0.00016438,2]
[335231926,1724001039349,-500.0,0.00016438,2]
[335231927,1724001039358,-500.0,0.00016438,2]
[335231928,1724001039367,-500.0,0.00016438,2]
[335231929,1724001039377,-500.0,0.00016438,2]
[335231930,1724001039386,-500.0,0.00016438,2]
[335231931,1724001039396,-508.68572364,0.00016438,2]
[335231932,1724001039405,-500.0,0.00016438,2]
[335231933,1724001039414,-467.06200236,0.00016438,2]
[335231934,1724001039423,-379.85518857,0.00016438,2]
[335231935,1724001039433,-500.0,0.00016438,2]
[335231936,1724001039445,-500.0,0.00016438,2]
[335231937,1724001039455,-521.75951476,0.00016438,2]
[335231938,1724001039465,-500.0,0.00016438,2]
[335231939,1724001039474,-512.46796529,0.00016438,2]
[335231940,1724001039483,-500.0,0.00016438,2]
[335231941,1724001039493,-500.0,0.00016438,2]
[335231943,1724001039503,-500.0,0.00016438,2]
[335231944,1724001039511,-500.0,0.00016438,2]
[335231946,1724001039520,-500.0,0.00016438,2]
[335231947,1724001039530,-500.0,0.00016438,2]
[335231948,1724001039539,-508.26415308,0.00016438,2]
[335231949,1724001039549,-794.6,0.00016438,2]
[335231950,1724001039560,-500.0,0.00016438,2]
[335231951,1724001039570,-379.65994937,0.00016438,2]
[335231952,1724001039579,-511.64760546,0.00016438,2]
[335231953,1724001039588,-500.0,0.00016438,2]
[335231954,1724001039597,-500.0,0.00016438,2]
[335231955,1724001039606,-500.0,0.00016438,2]
[335231956,1724001039615,-500.0,0.00016438,2]
[335231957,1724001039624,-500.0,0.00016438,2]
[335231958,1724001039634,-500.0,0.00016438,2]
[335231959,1724001039645,-896.83,0.00016438,2]
[335231960,1724001039654,-500.0,0.00016438,2]
[335231961,1724001039663,-500.0,0.00016438,2]
[335231962,1724001039672,-500.0,0.00016438,2]
[335231964,1724001039681,-500.0,0.00016438,2]
[335231965,1724001039690,-500.0,0.00016438,2]
[335231967,1724001039699,-500.0,0.00016438,2]
[335231969,1724001039708,-500.0,0.00016438,2]
[335231970,1724001039718,-500.0,0.00016438,2]
[335231971,1724001039727,-432.03554059,0.00016438,2]
[335231972,1724001039737,-502.35481281,0.00016438,2]
[335231974,1724001039746,-500.0,0.00016438,2]
[335231975,1724001039755,-508.99906591,0.00016438,2]
[335231976,1724001039764,-500.0,0.00016438,2]
[335231977,1724001039774,-500.0,0.00016438,2]
[335231978,1724001039784,-500.0,0.00016438,2]
[335231979,1724001039793,-500.0,0.00016438,2]
[335231980,1724001039802,-736.4,0.00016438,2]
[335231981,1724001039811,-500.0,0.00016438,2]
[335231982,1724001039821,-500.0,0.00016438,2]
[335231983,1724001039830,-500.0,0.00016438,2]
[335231984,1724001039839,-500.0,0.00016438,2]
[335231985,1724001039848,-500.0,0.00016438,2]
[335231986,1724001039857,-745.57,0.00016438,2]
[335231987,1724001039866,-500.0,0.00016438,2]
[335231988,1724001039875,-500.0,0.00016438,2]
[335231989,1724001039885,-500.0,0.00016438,2]
[335231990,1724001039893,-500.0,0.00016438,2]
[335231991,1724001039903,-500.0,0.00016438,2]
[335231992,1724001039911,-500.0,0.00016438,2]
[335231993,1724001039921,-500.0,0.00016438,2]
[335231994,1724001039930,-640.56,0.00016438,2]
[335231995,1724001039940,-500.0,0.00016438,2]
[335231996,1724001039950,-506.83,0.00016438,2]
[335231997,1724001039959,-500.0,0.00016438,2]
[335231998,1724001039968,-500.0,0.00016438,2]
[335231999,1724001039977,-500.0,0.00016438,2]
[335232000,1724001039987,-500.0,0.00016438,2]
[335232001,1724001039996,-466.80532712,0.00016438,2]
[335232002,1724001040005,-500.0,0.00016438,2]
[335232003,1724001040014,-507.80802781,0.00016438,2]
[335232004,1724001040024,-500.0,0.00016438,2]
[335232005,1724001040033,-167.27726661,0.00016438,2]
[335232006,1724001040043,-503.26337526,0.00016438,2]
[335232007,1724001040052,-571.39,0.00016438,2]
[335232008,1724001040061,-500.0,0.00016438,2]
[335232009,1724001040070,-500.0,0.00016438,2]
[335232010,1724001040080,-500.0,0.00016438,2]
[335232011,1724001040089,-1072.02,0.00016438,2]
[335232012,1724001040098,-500.0,0.00016438,2]
[335232013,1724001040107,-500.0,0.00016438,2]
[335232014,1724001040117,-500.0,0.00016438,2]
[335232015,1724001040127,-500.0,0.00016438,2]
[335232016,1724001040137,-500.0,0.00016438,2]
[335232017,1724001040146,-500.0,0.00016438,2]
[335232018,1724001040155,-571.47,0.00016438,2]
[335232019,1724001040164,-500.0,0.00016438,2]
[335232020,1724001040174,-694.6,0.00016438,2]
[335232021,1724001040184,-500.0,0.00016438,2]
[335232022,1724001040193,-500.0,0.00016438,2]
[335232023,1724001040202,-500.0,0.00016438,2]
[335232024,1724001040212,-504.08150754,0.00016438,2]
[335232025,1724001040221,-500.0,0.00016438,2]
[335232026,1724001040231,-500.0,0.00016438,2]
[335232027,1724001040240,-500.0,0.00016438,2]
[335232028,1724001040249,-500.0,0.00016438,2]
[335232029,1724001040259,-500.0,0.00016438,2]
[335232030,1724001040268,-500.0,0.00016438,2]
[335232031,1724001040277,-500.0,0.00016438,2]
[335232032,1724001040286,-500.0,0.00016438,2]
[335232033,1724001040295,-500.0,0.00016438,2]
[335232034,1724001040305,-500.0,0.00016438,2]
[335232035,1724001040314,-500.0,0.00016438,2]
[335232036,1724001040323,-484.98220317,0.00016438,2]
[335232037,1724001040333,-500.0,0.00016438,2]
[335232038,1724001040342,-500.0,0.00016438,2]
[335232039,1724001040351,-502.75146287,0.00016438,2]
[335232040,1724001040361,-612.12252098,0.00016438,2]
[335232041,1724001040370,-500.0,0.00016438,2]
[335232042,1724001040379,-500.0,0.00016438,2]
[335232043,1724001040389,-500.0,0.00016438,2]
[335232044,1724001040398,-678.73,0.00016438,2]
[335232045,1724001040407,-500.0,0.00016438,2]
[335232046,1724001040416,-500.0,0.00016438,2]
[335232047,1724001040425,-500.0,0.00016438,2]
[335232048,1724001040434,-500.0,0.00016438,2]
[335232049,1724001040444,-500.0,0.00016438,2]
[335232050,1724001040453,-500.0,0.00016438,2]
[335232052,1724001040462,-1102.01,0.00016438,2]
[335232054,1724001040472,-500.0,0.00016438,2]
[335232056,1724001040481,-417.33335301,0.00016438,2]
[335232057,1724001040490,-500.0,0.00016438,2]
[335232059,1724001040499,-309.0108856,0.00016438,2]
[335232060,1724001040509,-505.3599567,0.00016438,2]
[335232061,1724001040518,-500.0,0.00016438,2]
[335232062,1724001040527,-500.0,0.00016438,2]
[335232063,1724001040537,-500.0,0.00016438,2]
[335232064,1724001040546,-504.50626251,0.00016438,2]
[335232065,1724001040556,-692.09,0.00016438,2]
[335232066,1724001040566,-500.0,0.00016438,2]
[335232067,1724001040577,-150.0,0.00016438,2]
[335232068,1724001040586,-500.0,0.00016438,2]
[335232069,1724001040595,-710.97,0.00016438,2]
[335232070,1724001040605,-500.0,0.00016438,2]
[335232071,1724001040614,-500.0,0.00016438,2]
[335232072,1724001040623,-649.0,0.00016438,2]
[335232073,1724001040632,-500.0,0.00016438,2]
[335232074,1724001040642,-500.0,0.00016438,2]
[335232075,1724001040652,-500.0,0.00016438,2]
[335232076,1724001040661,-500.0,0.00016438,2]
[335232077,1724001040671,-500.0,0.00016438,2]
[335232078,1724001040680,-329.41772764,0.00016438,2]
[335232079,1724001040690,-500.0,0.00016438,2]
[335232080,1724001040700,-500.0,0.00016438,2]
[335232081,1724001040709,-501.6854391,0.00016438,2]
[335232082,1724001040719,-500.0,0.00016438,2]
[335232083,1724001040728,-500.0,0.00016438,2]
[335232084,1724001040737,-688.4,0.00016438,2]
[335232085,1724001040747,-500.0,0.00016438,2]
[335232086,1724001040756,-500.0,0.00016438,2]
[335232087,1724001040765,-500.0,0.00016438,2]
[335232088,1724001040774,-500.0,0.00016438,2]
[335232089,1724001040783,-500.0,0.00016438,2]
[335232090,1724001040792,-500.0,0.00016438,2]
[335232091,1724001040801,-500.0,0.00016438,2]
[335232092,1724001040811,-520.35,0.00016438,2]
[335232093,1724001040820,-500.0,0.00016438,2]
[335232094,1724001040829,-500.0,0.00016438,2]
[335232095,1724001040839,-500.0,0.00016438,2]
[335232096,1724001040848,-500.0,0.00016438,2]
[335232097,1724001040858,-500.0,0.00016438,2]
[335232098,1724001040867,-500.0,0.00016438,2]
[335232099,1724001040876,-500.0,0.00016438,2]
[335232100,1724001040886,-500.0,0.00016438,2]
[335232101,1724001040895,-500.0,0.00016438,2]
[335232102,1724001040904,-611.83015375,0.00016438,2]
[335232103,1724001040914,-500.0,0.00016438,2]
[335232104,1724001040923,-645.52102326,0.00016438,2]
[335232105,1724001040932,-500.0,0.00016438,2]
[335232106,1724001040942,-500.0,0.00016438,2]
[335232107,1724001040951,-500.0,0.00016438,2]
[335232108,1724001040961,-502.85908508,0.00016438,2]
[335232109,1724001040970,-500.0,0.00016438,2]
[335232110,1724001040979,-500.0,0.00016438,2]
[335232111,1724001040988,-500.0,0.00016438,2]
[335232112,1724001040997,-500.0,0.00016438,2]
[335232113,1724001041006,-500.0,0.00016438,2]
[335232114,1724001041016,-500.0,0.00016438,2]
[335232115,1724001041025,-500.0,0.00016438,2]
[335232116,1724001041034,-500.0,0.00016438,2]
[335232117,1724001041043,-725.37,0.00016438,2]
[335232118,1724001041053,-682.7,0.00016438,2]
[335232119,1724001041062,-500.0,0.00016438,2]
[335232120,1724001041071,-500.0,0.00016438,2]
[335232121,1724001041080,-500.0,0.00016438,2]
[335232122,1724001041089,-252.00719866,0.00016438,2]
[335232123,1724001041099,-200.0,0.00016438,2]
[335232124,1724001041109,-512.40516125,0.00016438,2]
[335232125,1724001041119,-500.0,0.00016438,2]
[335232126,1724001041128,-500.0,0.00016438,2]
[335232127,1724001041138,-572.75,0.00016438,2]
[335232128,1724001041148,-697.63,0.00016438,2]
[335232129,1724001041158,-500.0,0.00016438,2]
[335232130,1724001041321,-500.0,0.00016438,2]
[335232131,1724001041331,-500.0,0.00016438,2]
[335232132,1724001041340,-519.3786446,0.00016438,2]
[335232133,1724001041350,-500.0,0.00016438,2]
[335232134,1724001041359,-500.0,0.00016438,2]
[335232135,1724001041368,-500.0,0.00016438,2]
[335232136,1724001041377,-500.0,0.00016438,2]
[335232137,1724001041387,-500.0,0.00016438,2]
[335232138,1724001041396,-500.0,0.00016438,2]
[335232139,1724001041406,-500.0,0.00016438,2]
[335232140,1724001041415,-1303.51,0.00016438,2]
[335232141,1724001041424,-500.0,0.00016438,2]
[335232142,1724001041433,-500.0,0.00016438,2]
[335232143,1724001041442,-500.0,0.00016438,2]
[335232144,1724001041452,-500.0,0.00016438,2]
[335232145,1724001041462,-510.5141272,0.00016438,2]
[335232146,1724001041472,-500.0,0.00016438,2]
[335232147,1724001041481,-506.77248503,0.00016438,2]
[335232148,1724001041490,-1337.56,0.00016438,2]
[335232149,1724001041499,-500.0,0.00016438,2]
[335232150,1724001041508,-500.0,0.00016438,2]
[335232151,1724001041518,-510.71652448,0.00016438,2]
[335232152,1724001041527,-500.0,0.00016438,2]
[335232153,1724001041536,-500.0,0.00016438,2]
[335232154,1724001041545,-506.51232328,0.00016438,2]
[335232155,1724001041554,-500.0,0.00016438,2]
[335232156,1724001041568,-506.40033661,0.00016438,2]
[335232157,1724001041577,-500.0,0.00016438,2]
[335232158,1724001041586,-500.0,0.00016438,2]
[335232159,1724001041595,-500.0,0.00016438,2]
[335232160,1724001041606,-500.0,0.00016438,2]
[335232161,1724001041615,-599.68333757,0.00016438,2]
[335232162,1724001041624,-500.0,0.00016438,2]
[335232163,1724001041633,-500.0,0.00016438,2]
[335232164,1724001041644,-500.0,0.00016438,2]
[335232165,1724001041654,-702.79,0.00016438,2]
[335232166,1724001041663,-500.0,0.00016438,2]
[335232167,1724001041672,-594.54,0.00016438,2]
[335232168,1724001041682,-500.0,0.00016438,2]
[335232169,1724001041691,-500.0,0.00016438,2]
[335232170,1724001041702,-638.39,0.00016438,2]
[335232171,1724001041711,-418.11879524,0.00016438,2]
[335232172,1724001041720,-510.97364611,0.00016438,2]
[335232173,1724001041730,-501.12137864,0.00016438,2]
[335232174,1724001041739,-500.0,0.00016438,2]
[335232175,1724001041748,-543.71684572,0.00016438,2]
[335232176,1724001041758,-500.0,0.00016438,2]
[335232177,1724001041767,-500.0,0.00016438,2]
[335232178,1724001041776,-432.97912316,0.00016438,2]
[335232179,1724001042055,-146.5,0.00016438,2]
[335232200,1724001042586,-382.59087684,0.00016438,2]
[335232201,1724001042595,-945.39,0.00016438,2]
[335232203,1724001042608,-500.0,0.00016438,2]
[335232204,1724001042617,-506.59060356,0.00016438,2]
[335232206,1724001042628,-552.58696288,0.00016438,2]
[335232208,1724001042638,-500.0,0.00016438,2]
[335232209,1724001042647,-500.0,0.00016438,2]
[335232210,1724001042656,-589.78,0.00016438,2]
[335232211,1724001042667,-500.0,0.00016438,2]
[335232212,1724001042678,-500.0,0.00016438,2]
[335232213,1724001042688,-500.0,0.00016438,2]
[335232214,1724001042698,-500.0,0.00016438,2]
[335232215,1724001042707,-500.0,0.00016438,2]
[335232216,1724001042717,-685.28,0.00016438,2]
[335232217,1724001042726,-500.0,0.00016438,2]
[335232218,1724001042735,-500.0,0.00016438,2]
[335232219,1724001042744,-235.65083124,0.00016438,2]
[335232220,1724001043163,-264.34916876,0.00016438,2]
[335232221,1724001043173,-504.97,0.00016438,2]
[335232222,1724001043182,-500.0,0.00016438,2]
[335232223,1724001043192,-500.0,0.00016438,2]
[335232224,1724001043203,-500.0,0.00016438,2]
[335232225,1724001043213,-500.0,0.00016438,2]
[335232226,1724001043223,-712.8,0.00016438,2]
[335232227,1724001043234,-500.0,0.00016438,2]
[335232228,1724001043244,-500.0,0.00016438,2]
[335232229,1724001043255,-534.99,0.00016438,2]
[335232230,1724001043264,-628.41,0.00016438,2]
[335232231,1724001043275,-500.0,0.00016438,2]
[335232232,1724001043286,-500.0,0.00016438,2]
[335232233,1724001043296,-599.21,0.00016438,2]
[335232234,1724001043308,-644.57777291,0.00016438,2]
[335232235,1724001043319,-500.0,0.00016438,2]
[335232236,1724001043330,-500.0,0.00016438,2]
[335232237,1724001043339,-721.2,0.00016438,2]
[335232238,1724001043357,-500.0,0.00016438,2]
[335232240,1724001043370,-500.0,0.00016438,2]
[335232243,1724001043382,-500.0,0.00016438,2]
[335232244,1724001043392,-500.0,0.00016438,2]
[335232246,1724001043402,-500.0,0.00016438,2]
[335232248,1724001043412,-500.0,0.00016438,2]
[335232250,1724001043423,-500.0,0.00016438,2]
[335232251,1724001043435,-500.0,0.00016438,2]
[335232252,1724001043445,-503.19594722,0.00016438,2]
[335232253,1724001043459,-500.0,0.00016438,2]
[335232254,1724001043470,-500.0,0.00016438,2]
[335232255,1724001043480,-500.0,0.00016438,2]
[335232256,1724001043490,-601.46,0.00016438,2]
[335232257,1724001043500,-500.0,0.00016438,2]
[335232258,1724001043510,-702.35,0.00016438,2]
[335232259,1724001043520,-500.0,0.00016438,2]
[335232260,1724001043531,-500.0,0.00016438,2]
[335232261,1724001043541,-251.245295,0.00016438,2]
[335232262,1724001043551,-529.96242186,0.00016438,2]
[335232263,1724001043566,-500.0,0.00016438,2]
[335232264,1724001043576,-500.0,0.00016438,2]
[335232265,1724001043586,-151.0,0.00016438,2]
[335232266,1724001043595,-500.0,0.00016438,2]
[335232267,1724001043608,-500.0,0.00016438,2]
[335232268,1724001043618,-500.0,0.00016438,2]
[335232269,1724001043628,-151.0,0.00016438,2]
[335232270,1724001043639,-249.516658,0.00016438,2]
[335232271,1724001043649,-500.0,0.00016438,2]
[335232272,1724001043659,-500.0,0.00016438,2]
[335232273,1724001043668,-500.0,0.00016438,2]
[335232274,1724001043678,-500.0,0.00016438,2]
[335232275,1724001043688,-500.0,0.00016438,2]
[335232276,1724001043700,-500.0,0.00016438,2]
[335232277,1724001043710,-739.43,0.00016438,2]
[335232278,1724001043720,-500.0,0.00016438,2]
[335232279,1724001043730,-500.0,0.00016438,2]
[335232280,1724001043740,-500.0,0.00016438,2]
[335232281,1724001043750,-1777.184239,0.00016438,2]
[335232282,1724001043760,-500.0,0.00016438,2]
[335232283,1724001043772,-1777.184239,0.00016438,2]
[335232284,1724001043782,-500.0,0.00016438,2]
[335232285,1724001043792,-500.0,0.00016438,2]
[335232286,1724001043802,-500.0,0.00016438,2]
[335232287,1724001043812,-151.0,0.00016438,2]
[335232288,1724001043821,-500.0,0.00016438,2]
[335232289,1724001043832,-426.90354338,0.00016438,2]
[335232290,1724001043842,-632.45161308,0.00016438,2]
[335232291,1724001043852,-500.0,0.00016438,2]
[335232292,1724001043862,-500.0,0.00016438,2]
[335232293,1724001043872,-500.0,0.00016438,2]
[335232294,1724001043883,-500.0,0.00016438,2]
[335232295,1724001043893,-500.0,0.00016438,2]
[335232296,1724001043903,-525.32,0.00016438,2]
[335232297,1724001043913,-500.0,0.00016438,2]
[335232298,1724001043923,-500.0,0.00016438,2]
[335232299,1724001043933,-500.0,0.00016438,2]
[335232300,1724001043943,-500.0,0.00016438,2]
[335232301,1724001043955,-500.0,0.00016438,2]
[335232302,1724001043964,-500.0,0.00016438,2]
[335232303,1724001043974,-500.0,0.00016438,2]
[335232304,1724001043983,-500.0,0.00016438,2]
[335232305,1724001043994,-500.0,0.00016438,2]
[335232306,1724001044003,-505.25967494,0.00016438,2]
[335232307,1724001044014,-500.0,0.00016438,2]
[335232308,1724001044023,-500.0,0.00016438,2]